bitfinex-derivatives/quotes_ETHF0:USTF0_20241104
["timestamp","ask_amount","ask_price","bid_price","bid_amount"]
[1730727769816,0.40518,2469.6,2469.5,1.3226]
[1730727770014,3.56489662,2469.6,2469.5,1.87900376]
[1730727770204,3.56489662,2469.6,2469.5,1.3226]
[1730727770405,3.56489662,2469.6,2469.5,1.87898246]
[1730727770612,3.15971662,2469.6,2469.3,1.06215521]
[1730727770808,0.4052,2469.5,2469.4,0.55610573]
[1730727771008,3.60491662,2469.6,2469.2,2.77119521]
[1730727771215,0.40523,2469.3,2469.2,2.77119521]
[1730727771415,0.40523,2469.3,2469.2,3.32701596]
[1730727772116,0.40523,2469.3,2469.2,2.92177596]
[1730727772317,0.40523,2469.3,2469.2,1.85962075]
[1730727772515,0.40523,2469.3,2469.2,1.3038]
[1730727774022,3.15971662,2469.4,2469.2,1.3038]
[1730727774220,3.56494662,2469.4,2469.2,1.70904]
[1730727774524,3.15971662,2469.4,2469.2,1.70904]
[1730727774720,0.40523,2469.3,2469.2,1.70904]
[1730727775427,0.40523,2469.3,2469.2,1.3038]
[1730727777026,3.61303,2469.3,2469.2,1.3038]
[1730727777518,44.41303,2469.3,2469.2,1.3038]
[1730727779025,41.20523,2469.3,2469.2,1.3038]
[1730727781829,41.20523,2469.3,2469.2,1.70905]
[1730727784928,40.8,2469.3,2469.2,1.70905]
[1730727785125,7.83705662,2469.9,2469.5,0.4052]
[1730727785324,0.4052,2469.6,2469.5,0.4052]
[1730727785632,41.2052,2469.6,2469.5,0.4052]
[1730727785926,41.2052,2469.6,2469.3,0.40522]
[1730727785927,0.40523,2469.4,2469.3,0.40522]
[1730727787627,0.40522,2469.5,2469.4,0.4052]
[1730727789328,0.40523,2469.4,2469.3,0.40522]
[1730727789629,0.40523,2469.4,2469.1,1.01317]
[1730727789630,0.40526,2469.2,2469.1,0.40524]
[1730727790826,0.40529,2469.1,2469.0,0.40527]
[1730727791433,3.56497662,2469.2,2469.1,0.40526]
[1730727794932,0.40525,2469.2,2469.1,0.40526]
[1730727795128,3.15971662,2469.4,2469.0,3.2078]
[1730727795329,0.40524,2469.3,2469.2,0.40523]
[1730727798037,40.8,2469.6,2469.2,8.2705]
[1730727798242,41.20521,2469.6,2469.5,0.4052]
[1730727798735,41.20518,2469.6,2469.5,0.4052]
[1730727800040,0.40523,2469.4,2469.3,0.40521]
[1730727800946,0.40523,2469.4,2469.3,0.84841]
[1730727801233,0.40523,2469.4,2469.3,0.4432]
[1730727802036,0.40523,2469.4,2469.3,0.84843]
[1730727803541,40.8,2469.6,2469.3,0.4432]
[1730727803739,0.40521,2469.5,2469.4,0.4052]
[1730727803945,0.40521,2469.5,2469.4,0.839]
[1730727804137,0.40521,2469.5,2469.4,0.4338]
[1730727804339,3.56492662,2469.5,2469.4,0.4338]
[1730727805043,0.40528,2469.1,2469.0,0.40526]
[1730727805345,0.40528,2469.1,2469.0,1.83999335]
[1730727805737,0.40528,2469.1,2469.0,5.89039335]
[1730727806044,0.40528,2469.1,2469.0,1.83999335]
[1730727808038,0.40528,2469.1,2469.0,1.28506]
[1730727808249,0.40528,2469.1,2469.0,1.84081012]
[1730727809248,0.40528,2469.1,2469.0,6.94811602]
[1730727809442,0.40528,2469.1,2469.0,7.8379293]
[1730727809836,0.40528,2469.1,2469.0,3.3822693]
[1730727810035,0.40528,2469.1,2469.0,1.00175012]
[1730727810432,3.56499662,2469.1,2469.0,0.55575012]
[1730727811451,0.40528,2469.0,2468.9,1.0604069]
[1730727811633,0.40528,2469.0,2468.9,1.9540961]
[1730727811838,0.40528,2469.0,2468.9,1.44730903]
[1730727812039,0.40528,2469.0,2468.9,2.91301593]
[1730727812356,0.40528,2469.0,2468.9,4.29241658]
[1730727812646,0.40528,2469.0,2468.9,4.79920459]
[1730727813240,0.40528,2469.0,2468.9,4.92410804]
[1730727813447,0.40528,2469.0,2468.9,3.33349769]
[1730727813752,0.40528,2469.0,2468.9,4.39543172]
[1730727814143,0.40528,2469.0,2468.9,4.80073172]
[1730727814443,0.40528,2469.0,2468.9,5.32940804]
[1730727815043,0.40528,2469.0,2468.9,3.375311]
[1730727815253,0.40528,2469.0,2468.9,5.330961]
[1730727815747,0.40528,2469.0,2468.9,5.33109637]
[1730727816650,0.40528,2469.0,2468.9,3.95169572]
[1730727816850,0.40528,2469.0,2468.9,5.33197818]
[1730727818852,0.40528,2469.0,2468.9,5.33197744]
[1730727819357,1.86474396,2469.0,2468.9,5.33197744]
[1730727821453,1.86474396,2469.0,2468.9,3.74123609]
[1730727821953,1.86474396,2469.0,2468.9,5.33184644]
[1730727822347,1.86474396,2469.0,2468.9,3.88284613]
[1730727822653,1.86474396,2469.0,2468.9,3.74119881]
[1730727822954,1.86474396,2469.0,2468.9,4.80331965]
[1730727823450,1.86474396,2469.0,2468.9,4.39801965]
[1730727823642,1.86474396,2469.0,2468.9,4.39796876]
[1730727823842,1.86474396,2469.0,2468.9,3.01786819]
[1730727824951,1.86474396,2469.0,2468.9,1.95574735]
[1730727825348,1.86474396,2469.0,2468.9,3.01786819]
[1730727825847,1.86474396,2469.0,2468.9,1.61933684]
[1730727826152,1.86474396,2469.0,2468.9,0.50680766]
[1730727826346,1.86474396,2469.0,2468.9,1.95558025]
[1730727826651,1.86474396,2469.0,2468.9,1.95551399]
[1730727826842,1.86474396,2469.0,2468.9,3.42293483]
[1730727827349,1.86474396,2469.0,2468.9,4.80283061]
[1730727827744,1.86474396,2469.0,2468.9,3.01763483]
[1730727828151,1.86474396,2469.0,2468.9,3.42293483]
[1730727828849,1.86474396,2469.0,2468.9,4.8026746]
[1730727829051,1.86474396,2469.0,2468.9,5.35981764]
[1730727829252,1.86474396,2469.0,2468.9,3.42279997]
[1730727829551,1.86474396,2469.0,2468.9,2.91598986]
[1730727829751,1.86474396,2469.0,2468.9,3.42277319]
[1730727830457,1.86474396,2469.0,2468.9,3.01747319]
[1730727830945,1.86474396,2469.0,2468.9,1.44856902]
[1730727831147,1.86474396,2469.0,2468.9,0.55714193]
[1730727831348,42.66474396,2469.0,2468.9,0.55714193]
[1730727833150,42.25946396,2469.0,2468.9,0.55710743]
[1730727833456,46.71514396,2469.0,2468.9,0.55710743]
[1730727834068,46.30986396,2469.0,2468.9,0.5570876]
[1730727834356,46.71514396,2469.0,2468.9,0.5570876]
[1730727836767,0.4053,2468.9,2468.8,0.40531]
[1730727836955,1.86476396,2468.9,2468.8,0.96237241]
[1730727837355,1.86476396,2468.9,2468.8,0.55706241]
[1730727838065,1.86476396,2468.9,2468.8,0.96237241]
[1730727838456,1.86476396,2468.9,2468.8,0.55706241]
[1730727839362,1.86476396,2468.9,2468.8,0.96237241]
[1730727839559,1.86476396,2468.9,2468.8,0.55706241]
[1730727840160,1.86476396,2468.9,2468.8,0.96237241]
[1730727840569,1.86476396,2468.9,2468.8,0.40531]
[1730727840767,1.86476396,2468.9,2468.8,0.55694089]
[1730727841260,1.86476396,2468.9,2468.8,0.96225089]
[1730727843062,1.86476396,2468.9,2468.8,0.55694089]
[1730727844668,1.86476396,2468.9,2468.8,0.96225089]
[1730727845166,1.86476396,2468.9,2468.8,0.96221592]
[1730727845769,1.86476396,2468.9,2468.8,0.55690592]
[1730727848266,1.86476396,2468.9,2468.8,0.96221592]
[1730727848572,1.86476396,2468.9,2468.8,0.55690592]
[1730727849368,1.86476396,2468.9,2468.8,0.96221592]
[1730727849575,1.86476396,2468.9,2468.8,0.55690592]
[1730727849771,1.86476396,2468.9,2468.8,0.96221592]
[1730727850069,1.86476396,2468.9,2468.8,0.40531]
[1730727850265,1.86476396,2468.9,2468.8,0.96251499]
[1730727850668,42.25946396,2469.0,2468.9,0.4053]
[1730727850862,42.25946396,2469.0,2468.9,8.85375148]
[1730727850863,42.66474396,2469.0,2468.9,8.85375148]
[1730727851068,42.66474396,2469.0,2468.9,3.74123064]
[1730727851266,42.66474396,2469.0,2468.9,5.33184099]
[1730727851466,42.66474396,2469.0,2468.9,4.92654099]
[1730727851772,42.66474396,2469.0,2468.9,1.06237068]
[1730727851966,0.4053,2468.9,2468.8,1.46768068]
[1730727852171,1.86476396,2468.9,2468.8,2.84815179]
[1730727852374,1.86476396,2468.9,2468.8,1.78578111]
[1730727852575,1.86476396,2468.9,2468.8,3.37639146]
[1730727852873,1.86476396,2468.9,2468.8,4.29756929]
[1730727853275,1.86476396,2468.9,2468.8,5.33248031]
[1730727853472,1.45946396,2468.9,2468.8,5.33248031]
[1730727854170,1.86476396,2468.9,2468.8,5.34151039]
[1730727856172,1.86476396,2468.9,2468.8,4.81375065]
[1730727857473,1.86476396,2468.9,2468.8,1.97495318]
[1730727857675,1.86476396,2468.9,2468.8,3.43366948]
[1730727857978,1.86476396,2468.9,2468.8,4.81477751]
[1730727858178,1.86476396,2468.9,2468.8,4.81477486]
[1730727858478,1.86476396,2468.9,2468.8,3.75193619]
[1730727858682,1.86476396,2468.9,2468.8,5.34254654]
[1730727859680,40.8,2469.0,2468.8,8.98763654]
[1730727859874,40.8,2469.0,2468.9,5.34253466]
[1730727860071,40.8,2469.0,2468.9,5.34620674]
[1730727860270,41.20528,2469.0,2468.9,3.75192431]
[1730727860771,41.20528,2469.0,2468.9,3.75184738]
[1730727861573,41.20528,2469.0,2468.9,1.78641544]
[1730727861778,41.20528,2469.0,2468.9,5.3460253]
[1730727862283,40.8,2469.0,2468.9,3.75180328]
[1730727862482,40.8,2469.0,2468.9,6.95960328]
[1730727862781,40.8,2469.0,2468.9,9.08041708]
[1730727862968,40.8,2469.0,2468.9,6.95960328]
[1730727863370,40.8,2469.0,2468.9,13.13081708]
[1730727864376,40.8,2469.0,2468.9,15.89255899]
[1730727865170,40.8,2469.0,2468.9,15.89242841]
[1730727865883,40.8,2469.0,2468.9,16.34132841]
[1730727866381,42.66474396,2469.0,2468.9,5.79454267]
[1730727866584,43.12374396,2469.0,2468.9,5.26324528]
[1730727867374,43.12374396,2469.0,2468.9,4.85794528]
[1730727868179,43.12374396,2469.0,2468.9,1.96525726]
[1730727868384,43.12374396,2469.0,2468.9,0.5609574]
[1730727868583,47.17414396,2469.0,2468.9,0.5609574]
[1730727868779,46.76886396,2469.0,2468.7,1.52207258]
[1730727869086,1.86477396,2468.8,2468.7,1.52207258]
[1730727869280,1.86477396,2468.8,2468.7,3.84976613]
[1730727869484,1.86477396,2468.8,2468.7,4.35660057]
[1730727869682,1.86477396,2468.8,2468.7,5.24824135]
[1730727869884,1.86477396,2468.8,2468.7,4.84291135]
[1730727870188,1.86477396,2468.8,2468.7,4.84292174]
[1730727870690,1.86477396,2468.8,2468.7,4.38352174]
[1730727870984,1.86477396,2468.8,2468.7,1.56950702]
[1730727871288,1.86477396,2468.8,2468.7,3.01842678]
[1730727872290,1.86477396,2468.8,2468.7,1.44891976]
[1730727872485,1.86477396,2468.8,2468.6,1.48417258]
[1730727872486,0.40533,2468.7,2468.6,1.48417258]
[1730727872785,0.40533,2468.7,2468.6,3.43987959]
[1730727874184,1.86479396,2468.7,2468.6,0.77124959]
[1730727874391,0.4054,2468.3,2467.5,2.53132779]
[1730727874580,0.40549,2467.7,2467.6,1.82505113]
[1730727874789,42.66495396,2467.7,2467.6,1.82505113]
[1730727874982,1.45946396,2467.7,2467.6,1.82505113]
[1730727875182,1.45946396,2467.7,2467.6,2.23056113]
[1730727875591,42.25946396,2467.7,2467.6,2.23056113]
[1730727875786,42.25946396,2467.7,2467.6,2.20371876]
[1730727876291,42.66495396,2467.7,2467.6,0.86981]
[1730727877392,41.20549,2467.7,2467.6,0.86981]
[1730727877692,40.8,2467.7,2467.6,0.86981]
[1730727877985,40.8,2467.7,2467.6,2.2021439]
[1730727878487,3.16393967,2468.1,2467.9,0.40545]
[1730727878684,3.56937967,2468.1,2468.0,0.40544]
[1730727878884,44.36937967,2468.1,2468.0,0.40544]
[1730727879585,43.96393967,2468.1,2468.0,0.40544]
[1730727879787,44.36936967,2468.1,2468.0,0.40544]
[1730727880991,43.96393967,2468.1,2468.0,0.40544]
[1730727881286,41.20543,2468.1,2468.0,0.40544]
[1730727882182,40.8,2468.1,2468.0,0.40544]
[1730727891691,40.8,2468.1,2468.0,4.45744]
[1730727891890,40.8,2468.1,2468.0,0.40544]
[1730727893902,40.8,2468.1,2468.0,0.85264]
[1730727894200,40.8,2468.1,2468.0,1.27424]
[1730727894898,40.8,2468.1,2468.0,5.32624]
[1730727897604,40.8,2468.1,2468.0,5.87067557]
[1730727898104,40.8,2468.1,2468.0,8.20154868]
[1730727898305,1.45981158,2468.6,2468.0,6.92504715]
[1730727898507,1.45981158,2468.6,2468.5,0.40536]
[1730727899000,1.45981158,2468.6,2468.5,1.74836]
[1730727899204,42.25981158,2468.6,2468.5,1.74836]
[1730727899405,42.66516158,2468.6,2468.5,1.74836]
[1730727900808,42.25981158,2468.6,2468.5,1.74836]
[1730727901107,42.66516158,2468.6,2468.5,1.74836]
[1730727901303,42.66516158,2468.6,2468.5,1.343]
[1730727901501,42.66516158,2468.6,2468.3,3.2078]
[1730727901502,0.40538,2468.4,2468.3,3.2078]
[1730727901703,0.40538,2468.4,2467.8,1.01367]
[1730727901704,2.47329158,2468.4,2468.0,3.61323]
[1730727901902,1.86524158,2468.1,2468.0,3.61323]
[1730727902901,1.45981158,2468.1,2468.0,3.61323]
[1730727903099,1.45981158,2468.4,2468.3,0.4054]
[1730727903300,1.86519158,2468.4,2468.3,0.4054]
[1730727904402,1.45981158,2468.4,2468.3,0.4054]
[1730727904802,1.86519158,2468.4,2468.3,0.4054]
[1730727905010,1.86519158,2468.4,2468.3,1.3167]
[1730727905309,1.45981158,2468.4,2468.3,1.3167]
[1730727905616,1.45981158,2468.5,2468.4,0.40538]
[1730727906205,1.45981158,2468.5,2468.0,3.2078]
[1730727906404,1.86519158,2468.4,2468.3,0.4054]
[1730727906712,1.86519158,2468.4,2468.3,3.61319]
[1730727906914,0.40541,2468.3,2468.2,0.4054]
[1730727907210,0.40541,2468.2,2468.1,1.76022]
[1730727907911,1.45981158,2468.3,2468.1,1.3548]
[1730727908101,1.45981158,2468.3,2468.2,0.40541]
[1730727908605,1.86521158,2468.3,2468.2,0.40541]
[1730727909413,1.86521158,2468.3,2468.2,0.95581406]
[1730727909712,1.86521158,2468.3,2468.2,0.40541]
[1730727909903,1.86521158,2468.3,2468.2,0.95584669]
[1730727910400,1.45981158,2468.3,2468.2,0.95584669]
[1730727910598,0.40539,2468.4,2468.3,0.4054]
[1730727910599,1.86520158,2468.4,2468.3,0.4054]
[1730727911102,1.86519158,2468.4,2468.3,0.4054]
[1730727911510,1.86519158,2468.4,2468.3,0.95611673]
[1730727911905,1.45981158,2468.4,2468.3,0.95611673]
[1730727912107,1.86519158,2468.4,2468.3,0.95611673]
[1730727912611,1.45981158,2468.4,2468.3,0.95611673]
[1730727913107,1.86519158,2468.4,2468.3,0.95611673]
[1730727913612,1.45981158,2468.4,2468.3,0.95611673]
[1730727914006,1.86519158,2468.4,2468.3,0.95611673]
[1730727914809,1.45981158,2468.4,2468.3,0.95611673]
[1730727915003,40.8,2468.6,2468.3,0.95611673]
[1730727915004,40.8,2468.6,2468.3,5.00765344]
[1730727915205,40.8,2468.6,2468.5,0.40536]
[1730727915510,40.8,2468.6,2468.5,1.83806718]
[1730727915712,40.8,2468.6,2468.5,4.06282641]
[1730727916211,40.8,2468.6,2468.5,4.06272523]
[1730727916633,41.20535,2468.6,2468.5,2.76566523]
[1730727916913,49.92416158,2468.6,2468.5,0.55105344]
[1730727917218,0.40546,2467.9,2467.8,0.40547]
[1730727917511,0.40546,2467.9,2467.8,1.43290383]
[1730727917512,3.32508316,2467.9,2467.8,1.43290383]
[1730727917717,0.40553,2467.5,2467.4,3.2078]
[1730727917920,1.86534158,2467.5,2467.4,3.2078]
[1730727918221,42.66534158,2467.5,2467.4,3.2078]
[1730727918607,42.66534158,2467.5,2467.4,3.61334]
[1730727918809,42.66534158,2467.5,2467.4,3.2078]
[1730727919215,46.31261158,2467.5,2467.2,0.4239]
[1730727919404,0.40559,2467.2,2467.1,0.40559]
[1730727919606,0.40559,2467.2,2467.1,1.33302055]
[1730727920010,0.40559,2467.1,2467.0,0.8679]
[1730727920214,0.40559,2467.1,2467.0,2.20049544]
[1730727920411,0.40559,2467.1,2467.0,1.79489544]
[1730727920617,0.40559,2467.1,2467.0,0.4623]
[1730727921315,0.40559,2467.1,2466.8,3.2078]
[1730727921316,3.16451914,2467.1,2466.8,3.2078]
[1730727921512,6.37231914,2467.1,2466.7,0.40565]
[1730727921716,6.37231914,2467.1,2466.5,0.4623]
[1730727922014,0.40564,2466.8,2466.7,0.40564]
[1730727922214,3.16451914,2467.1,2466.6,0.83087]
[1730727922215,0.40566,2466.7,2466.6,0.83087]
[1730727922518,0.40567,2466.6,2466.5,0.4623]
[1730727922811,3.16451914,2466.8,2466.3,3.2078]
[1730727923023,0.40568,2466.6,2466.3,3.2078]
[1730727923314,3.2078,2467.1,2466.4,1.01428]
[1730727923315,3.16451914,2467.0,2466.4,1.01428]
[1730727923516,3.16451914,2467.0,2466.6,3.2078]
[1730727923917,0.40563,2466.9,2466.7,0.40564]
[1730727924126,0.40563,2466.9,2466.7,0.83474]
[1730727924609,3.16451914,2467.0,2466.7,0.83474]
[1730727924920,0.40564,2466.9,2466.7,0.4291]
[1730727925316,0.40564,2466.8,2466.7,0.83475]
[1730727925515,0.40563,2466.9,2466.7,0.83475]
[1730727926423,3.16451914,2467.0,2466.7,0.4291]
[1730727926622,3.16451914,2467.0,2466.6,3.2078]
[1730727926922,3.16451914,2467.0,2466.3,4.67778]
[1730727927122,3.16451914,2467.0,2466.4,1.01428]
[1730727927318,0.40565,2466.8,2466.6,0.40567]
[1730727927517,3.57012914,2467.0,2466.4,1.01428]
[1730727927716,0.40563,2466.9,2466.8,0.40563]
[1730727927917,3.57013914,2467.0,2466.8,0.40563]
[1730727928118,3.16451914,2467.0,2466.9,0.40563]
[1730727928319,3.57012914,2467.0,2466.9,0.40563]
[1730727928522,7.21811914,2467.0,2466.6,0.4506]
[1730727928719,0.40563,2466.9,2466.8,0.40563]
[1730727928923,3.57013914,2467.0,2466.9,0.40563]
[1730727929129,3.16451914,2467.3,2466.7,3.2078]
[1730727929322,3.16451914,2467.3,2466.8,0.4287]
[1730727929323,0.40558,2467.2,2466.8,0.4287]
[1730727929522,0.40558,2467.2,2467.1,0.40559]
[1730727929716,0.40559,2467.2,2467.1,0.40559]
[1730727930322,3.2078,2467.4,2466.8,1.4428]
[1730727930621,3.16451914,2467.5,2467.1,3.2078]
[1730727930826,0.40556,2467.4,2467.3,0.40555]
[1730727931128,0.40556,2467.4,2467.3,0.83425]
[1730727931526,0.40556,2467.4,2467.3,0.4287]
[1730727932027,0.40556,2467.4,2467.3,0.83426]
[1730727932223,0.40556,2467.4,2467.3,0.4287]
[1730727932420,0.40556,2467.4,2467.3,0.83426]
[1730727932930,3.57004914,2467.5,2467.4,0.40554]
[1730727933829,0.40554,2467.4,2467.3,0.83425]
[1730727934132,3.57005914,2467.5,2467.4,0.40554]
[1730727936534,0.40554,2467.4,2467.3,0.83425]
[1730727938622,7.2606,2467.4,2466.8,3.2078]
[1730727938822,0.40566,2466.7,2466.6,0.4549]
[1730727939323,41.20566,2466.7,2466.6,0.4549]
[1730727941537,0.40576,2466.2,2466.1,3.61355]
[1730727941832,10.42751914,2466.2,2465.3,3.74544435]
[1730727942024,3.57030914,2466.0,2465.7,3.2078]
[1730727942224,3.16451914,2466.0,2465.9,0.40579]
[1730727942431,0.4058,2465.9,2465.8,0.40581]
[1730727942628,40.8,2466.0,2465.9,0.40579]
[1730727943228,40.8,2466.0,2465.4,4.27416262]
[1730727943229,43.96451914,2466.0,2465.4,4.27416262]
[1730727943439,43.96451914,2466.0,2465.9,0.40579]
[1730727943626,40.8,2466.0,2465.9,0.40579]
[1730727944033,40.8,2466.0,2465.9,4.46099]
[1730727944834,3.16451914,2466.5,2465.9,4.0552]
[1730727945140,0.40572,2466.4,2466.2,0.40573]
[1730727945440,40.8,2466.3,2466.2,0.40573]
[1730727947033,3.57021914,2466.5,2466.0,4.0641]
[1730727947034,3.16451914,2466.5,2466.0,4.0641]
[1730727947244,0.40568,2466.6,2466.4,0.40571]
[1730727947432,0.40568,2466.6,2466.5,0.82609]
[1730727947631,41.20568,2466.6,2466.5,0.8546]
[1730727949436,40.8,2466.6,2466.5,1.26029]
[1730727949641,3.6134,2467.1,2467.0,0.40561]
[1730727949936,1.01378,2467.7,2466.9,3.2078]
[1730727949937,3.16451914,2467.4,2466.9,3.2078]
[1730727950129,3.16451914,2467.4,2467.0,1.2981]
[1730727950328,3.16451914,2467.4,2467.3,0.40556]
[1730727950532,40.8,2467.4,2467.2,3.2078]
[1730727950734,40.8,2467.4,2467.3,0.40556]
[1730727952835,41.20554,2467.4,2467.3,0.40556]
[1730727953040,40.8,2467.4,2467.3,0.40556]
[1730727953941,41.20554,2467.4,2467.3,0.40556]
[1730727954129,40.8,2467.4,2467.3,0.40556]
[1730727954330,3.2078,2467.7,2467.3,4.0528]
[1730727954539,3.2078,2467.7,2467.6,0.40551]
[1730727954743,44.0078,2467.7,2467.6,0.40551]
[1730727954929,40.8,2467.7,2467.6,10.83062914]
[1730727955135,0.40538,2468.5,2468.3,0.40539]
[1730727955443,3.16451914,2468.7,2468.2,3.2078]
[1730727955736,0.40535,2468.6,2468.4,0.40537]
[1730727955929,3.16451914,2468.7,2468.2,3.2078]
[1730727955930,0.40537,2468.5,2468.3,0.40538]
[1730727956127,40.8,2468.4,2468.3,0.40538]
[1730727956535,41.20538,2468.4,2468.3,0.40538]
[1730727956730,40.8,2468.4,2468.3,0.40538]
[1730727957135,41.20538,2468.4,2468.3,0.40538]
[1730727957438,40.8,2468.4,2468.3,0.40538]
[1730727957637,41.20539,2468.4,2468.2,3.6132]
[1730727957933,40.8,2468.4,2468.3,0.4054]
[1730727958636,40.8,2468.4,2468.3,4.9117]
[1730727958841,40.8,2468.4,2468.3,5.3489]
[1730727959040,40.8,2468.4,2468.3,1.2977]
[1730727959743,40.8,2468.4,2468.3,5.3489]
[1730727960541,3.16451914,2469.2,2468.4,1.01342]
[1730727960744,0.40531,2468.8,2468.7,3.61312]
[1730727960943,40.8,2468.8,2468.7,3.61312]
[1730727962243,40.8,2468.8,2468.7,7.66352]
[1730727962743,40.8,2468.8,2468.7,8.10602]
[1730727963341,40.8,2468.8,2468.7,4.05562]
[1730727963547,40.8,2468.8,2468.7,3.6503]
[1730727963737,41.20531,2468.8,2468.7,3.6503]
[1730727963932,40.8,2468.8,2468.7,4.05563]
[1730727965140,40.8,2468.8,2468.7,0.84783]
[1730727965336,40.8,2468.8,2468.7,4.05563]
[1730727965638,40.8,2468.8,2468.7,3.6503]
[1730727965840,41.20531,2468.8,2468.7,3.6503]
[1730727966438,40.8,2468.8,2468.7,4.05563]
[1730727967737,40.8,2468.8,2468.7,8.10603]
[1730727968142,40.8,2468.8,2468.7,4.05563]
[1730727968445,40.8,2468.8,2468.7,8.10603]
[1730727969158,4.22078,2469.6,2468.7,8.10603]
[1730727969159,3.2078,2470.3,2468.7,25.02173606]
[1730727969451,0.40513,2470.0,2469.6,0.40518]
[1730727969749,0.40512,2470.0,2469.8,0.40514]
[1730727970144,0.4051,2470.2,2469.9,0.40512]
[1730727970451,0.40509,2470.2,2470.0,0.40511]
[1730727970943,3.61287,2470.3,2470.1,0.40509]
[1730727971249,41.20505,2470.5,2469.9,1.01283]
[1730727971551,40.8,2470.5,2470.4,0.40505]
[1730727972346,41.20503,2470.5,2470.4,0.40505]
[1730727972547,40.8,2470.5,2470.4,0.40505]
[1730727972743,40.8,2470.5,2470.1,3.2078]
[1730727972947,0.40505,2470.4,2470.3,0.40506]
[1730727973147,40.8,2470.5,2470.4,0.40505]
[1730727973342,40.8,2470.5,2470.1,3.2078]
[1730727973545,41.20504,2470.5,2470.1,3.2078]
[1730727973745,41.20504,2470.5,2470.3,0.40506]
[1730727974052,40.8,2470.5,2470.1,3.2078]
[1730727974352,40.8,2470.5,2470.4,0.40505]
[1730727974553,40.8,2470.5,2470.1,3.2078]
[1730727974742,41.20504,2470.5,2470.3,0.40506]
[1730727974942,40.8,2470.5,2470.1,3.2078]
[1730727975250,0.40508,2470.3,2470.1,3.61289]
[1730727975446,0.40508,2470.2,2470.1,3.2078]
[1730727975949,0.40508,2470.2,2469.8,0.40514]
[1730727975950,0.40513,2470.0,2469.8,0.40514]
[1730727976155,7.38498914,2470.4,2469.9,0.40513]
[1730727976347,0.40511,2470.1,2469.9,0.40513]
[1730727976553,0.40512,2470.0,2469.7,3.6368]
[1730727976748,0.40512,2470.0,2469.9,0.40513]
[1730727977049,0.40512,2470.0,2469.9,0.40512]
[1730727977440,0.40512,2470.0,2469.7,3.6368]
[1730727977642,0.40512,2470.0,2469.9,0.40513]
[1730727977849,40.8,2470.5,2469.7,3.6368]
[1730727978052,0.40507,2470.3,2470.1,0.40509]
[1730727978246,0.40506,2470.4,2470.2,0.40508]
[1730727978655,4.45308,2470.3,2470.1,0.40509]
[1730727978855,0.40509,2470.2,2470.0,3.61291]
[1730727979157,0.4051,2470.1,2470.0,3.2078]
[1730727979547,4.90299388,2470.4,2470.0,3.2078]
[1730727979548,3.89036388,2470.4,2470.0,3.2078]
[1730727979747,0.40506,2470.4,2470.2,0.40508]
[1730727979951,40.8,2470.5,2470.3,0.40507]
[1730727980145,41.20504,2470.5,2470.0,3.2078]
[1730727980353,40.8,2470.5,2470.4,0.40505]
[1730727980552,40.8,2470.5,2470.1,0.4213]
[1730727980747,0.40506,2470.4,2470.1,0.4213]
[1730727980952,0.40508,2470.2,2470.1,0.4051]
[1730727981351,0.40508,2470.2,2470.0,3.61291]
[1730727981549,0.40508,2470.2,2470.1,0.4051]
[1730727981755,0.40508,2470.2,2470.0,3.2078]
[1730727981961,44.69036388,2470.5,2470.0,3.2078]
[1730727982156,0.40508,2470.3,2470.1,0.4051]
[1730727982361,0.4051,2470.1,2470.0,3.61291]
[1730727983360,45.70297388,2470.5,2470.0,3.61291]
[1730727983361,0.40509,2470.2,2470.0,3.61291]
[1730727983557,0.4051,2470.1,2470.0,3.61291]
[1730727984170,0.4051,2470.1,2470.0,3.2078]
[1730727984852,0.4051,2470.1,2469.7,0.429]
[1730727985060,1.01263,2470.4,2469.8,0.40514]
[1730727985061,0.40514,2469.9,2469.8,0.40514]
[1730727985558,0.40515,2469.8,2469.7,4.04196]
[1730727985957,1.01273,2470.2,2469.8,0.40514]
[1730727986162,1.01263,2470.4,2469.7,3.6368]
[1730727986460,0.40513,2470.0,2469.8,0.40514]
[1730727986662,0.40513,2470.0,2469.7,3.6368]
[1730727986663,47.89816388,2470.5,2469.7,3.6368]
[1730727986866,0.40515,2469.8,2469.7,4.04196]
[1730727987058,0.40514,2469.9,2469.8,0.40515]
[1730727988168,1.01275,2470.2,2469.7,4.04195]
[1730727988169,0.40515,2469.8,2469.7,4.04195]
[1730727988466,0.40515,2469.9,2469.8,0.40515]
[1730727989668,0.40515,2469.8,2469.7,4.04196]
[1730727989964,0.40514,2469.9,2469.8,0.40514]
[1730727990155,1.01272,2470.2,2469.7,3.6368]
[1730727990355,0.40515,2469.9,2469.8,0.40515]
[1730727990761,0.40514,2469.9,2469.8,0.40515]
[1730727991561,1.01272,2470.2,2469.7,3.6368]
[1730727991562,0.40515,2469.8,2469.7,4.04196]
[1730727991764,3.2078,2470.0,2469.4,3.2078]
[1730727992070,0.4052,2469.5,2469.4,4.0527]
[1730727992254,4.90320388,2469.9,2469.6,0.40518]
[1730727992255,0.40518,2469.7,2469.6,0.40518]
[1730727992567,0.40519,2469.6,2469.5,0.40519]
[1730727992763,40.8,2469.6,2469.5,0.40519]
[1730727992969,0.40514,2469.9,2469.4,3.6475]
[1730727993267,0.40513,2469.9,2469.8,0.40514]
[1730727993463,41.20513,2469.9,2469.8,0.40514]
[1730727993669,40.8,2469.9,2469.8,0.40514]
[1730727994163,40.8,2469.9,2469.8,1.28874]
[1730727995266,40.8,2469.9,2469.8,0.8836]
[1730727995267,0.40513,2469.9,2469.8,0.8836]
[1730727995475,0.40513,2469.9,2469.8,1.83280555]
[1730727995771,0.40513,2469.9,2469.8,1.00565555]
[1730727995962,0.40513,2469.9,2469.8,0.4616]
[1730727996158,41.20513,2469.9,2469.8,0.4616]
[1730727996362,41.20513,2469.9,2469.8,1.00611266]
[1730727996974,41.20513,2469.9,2469.7,3.61297]
[1730727996975,51.94696388,2469.9,2469.4,1.48916714]